bitfinex/quotes_BTCUSD_20241202
["timestamp","ask_amount","ask_price","bid_price","bid_amount"]
[1733099020374,0.3563054,97352.0,97351.0,0.11200117]
[1733099022421,0.3563054,97352.0,97351.0,0.14576889]
[1733099022633,0.3563054,97352.0,97351.0,0.14176889]
[1733099022854,0.3563054,97352.0,97351.0,0.13476889]
[1733099023551,0.3563054,97352.0,97351.0,0.13298801]
[1733099023763,0.3563054,97352.0,97351.0,0.14398801]
[1733099024007,0.3563054,97352.0,97351.0,0.14201207]
[1733099027056,0.3563054,97352.0,97351.0,0.14020791]
[1733099027728,0.0008654,97352.0,97351.0,0.14020791]
[1733099028362,0.0008654,97352.0,97351.0,0.13814691]
[1733099029075,0.0008654,97352.0,97351.0,0.12714691]
[1733099029322,0.0008654,97352.0,97351.0,0.14114691]
[1733099029581,0.0008654,97352.0,97351.0,0.26724691]
[1733099031978,0.0008654,97352.0,97351.0,0.26224691]
[1733099032193,0.0008654,97352.0,97351.0,0.26024691]
[1733099032424,0.0008654,97352.0,97351.0,0.26924691]
[1733099039880,0.0008654,97352.0,97351.0,0.26739124]
[1733099040999,0.0008654,97352.0,97351.0,0.26553441]
[1733099041225,0.0008654,97352.0,97351.0,0.26370248]
[1733099041449,0.0008654,97352.0,97351.0,0.25551648]
[1733099041695,0.0008654,97352.0,97351.0,0.27551648]
[1733099042357,4.173e-05,97352.0,97351.0,0.27551648]
[1733099043454,4.173e-05,97352.0,97351.0,0.58367648]
[1733099044791,4.173e-05,97352.0,97351.0,0.88367648]
[1733099045457,4.173e-05,97352.0,97351.0,0.87667648]
[1733099045662,4.173e-05,97352.0,97351.0,0.86867648]
[1733099046086,4.173e-05,97352.0,97351.0,0.86967648]
[1733099052320,0.0009816,97354.0,97351.0,0.86967648]
[1733099052321,5.421e-05,97354.0,97353.0,0.02]
[1733099052535,0.0453,97409.0,97383.0,0.01]
[1733099052746,0.205317,97410.0,97393.0,0.18024521]
[1733099052996,0.00179137,97401.0,97395.0,0.10284521]
[1733099053217,0.00179137,97401.0,97396.0,0.23738392]
[1733099053432,0.00179137,97401.0,97398.0,0.205343]
[1733099053645,0.00179137,97401.0,97399.0,0.13488213]
[1733099053853,0.00179137,97401.0,97400.0,0.03203692]
[1733099054064,0.00179137,97401.0,97400.0,0.13488213]
[1733099054328,0.00179137,97401.0,97400.0,0.44289213]
[1733099055374,0.00179137,97401.0,97400.0,0.44689213]
[1733099055585,0.00179137,97401.0,97400.0,0.45389213]
[1733099056653,0.00179137,97401.0,97400.0,0.45209696]
[1733099057125,0.00179137,97401.0,97400.0,0.54369696]
[1733099057790,0.00179137,97401.0,97400.0,0.53269696]
[1733099058250,0.00179137,97401.0,97400.0,0.54769696]
[1733099058459,0.00179137,97401.0,97400.0,0.55769696]
[1733099060072,0.00179137,97401.0,97400.0,0.54869696]
[1733099060289,0.00179137,97401.0,97400.0,0.54369696]
[1733099060498,0.00179137,97401.0,97400.0,0.54969696]
[1733099061546,0.00179137,97401.0,97400.0,0.54369696]
[1733099061758,0.00179137,97401.0,97400.0,0.54469696]
[1733099062635,0.00172585,97401.0,97400.0,0.54469696]
[1733099062854,0.00168585,97401.0,97400.0,0.54469696]
[1733099064003,0.00168585,97401.0,97400.0,0.61509696]
[1733099067274,0.00168585,97401.0,97400.0,0.61315959]
[1733099068347,0.00168585,97401.0,97400.0,0.61136642]
[1733099068774,0.00168585,97401.0,97400.0,0.57836642]
[1733099068978,0.00168585,97401.0,97400.0,0.56396642]
[1733099069193,0.00168585,97401.0,97400.0,0.55396642]
[1733099069407,0.00168585,97401.0,97400.0,0.54096642]
[1733099070772,0.001732,97412.0,97407.0,0.215324]
[1733099070977,0.001732,97412.0,97407.0,0.83488042]
[1733099071187,0.001732,97412.0,97407.0,1.14287042]
[1733099072958,0.001732,97412.0,97407.0,1.14487042]
[1733099073958,0.001732,97412.0,97407.0,1.09617042]
[1733099076298,0.001732,97412.0,97407.0,0.89084642]
[1733099077343,0.001732,97412.0,97407.0,0.88902946]
[1733099082247,0.00011632,97408.0,97407.0,0.88708593]
[1733099082743,0.00031132,97418.0,97409.0,0.00534844]
[1733099082968,0.00031132,97418.0,97417.0,0.10284521]
[1733099083209,0.00031132,97418.0,97417.0,0.10182255]
[1733099083442,0.00031132,97418.0,97417.0,0.12734072]
[1733099083685,0.00031132,97418.0,97417.0,0.43529072]
[1733099083923,0.00031132,97418.0,97417.0,0.43166635]
[1733099084575,0.00031132,97418.0,97417.0,0.44066635]
[1733099085982,0.00031132,97418.0,97417.0,0.44766635]
[1733099087357,0.20561132,97418.0,97417.0,0.4458623]
[1733099087597,0.00031132,97418.0,97417.0,0.4458623]
[1733099087835,0.00031132,97418.0,97417.0,0.44402994]
[1733099092382,3.249e-05,97418.0,97417.0,0.44402994]
[1733099093304,3.249e-05,97418.0,97417.0,0.52482994]
[1733099094433,3.249e-05,97418.0,97417.0,0.51582994]
[1733099094663,3.249e-05,97418.0,97417.0,0.50882994]
[1733099094913,3.249e-05,97418.0,97417.0,0.50982994]
[1733099095141,3.249e-05,97418.0,97417.0,0.50882994]
[1733099095431,3.249e-05,97418.0,97417.0,0.50982994]
[1733099095871,3.249e-05,97418.0,97417.0,0.51082994]
[1733099096081,3.249e-05,97418.0,97417.0,0.50982994]
[1733099096512,3.249e-05,97418.0,97417.0,0.51082994]
[1733099098667,3.249e-05,97418.0,97417.0,0.50882994]
[1733099098875,3.249e-05,97418.0,97417.0,0.50982994]
[1733099099089,3.249e-05,97418.0,97417.0,0.51082994]
[1733099099724,3.249e-05,97418.0,97417.0,0.51617838]
[1733099102423,7.614e-05,97429.0,97421.0,0.00534844]
[1733099102630,7.614e-05,97429.0,97428.0,0.10284521]
[1733099102851,7.614e-05,97429.0,97428.0,0.12928044]
[1733099103065,7.614e-05,97429.0,97428.0,0.43720044]
[1733099104685,7.614e-05,97429.0,97428.0,0.44620044]
[1733099105201,7.614e-05,97429.0,97428.0,0.45320044]
[1733099106698,0.00180574,97429.0,97428.0,0.45320044]
[1733099107563,0.07740574,97429.0,97428.0,0.45320044]
[1733099107771,0.13402814,97429.0,97428.0,0.45320044]
[1733099108253,0.1317573,97429.0,97428.0,0.44620044]
[1733099108459,0.1317573,97429.0,97428.0,0.44820044]
[1733099109128,0.1317573,97429.0,97428.0,0.43720044]
[1733099109328,0.1317573,97429.0,97428.0,0.43920044]
[1733099109539,0.1317573,97429.0,97428.0,0.41268923]
[1733099110520,0.1317573,97429.0,97428.0,0.41168923]
[1733099110948,0.12710574,97429.0,97428.0,0.41168923]
[1733099111165,0.12710574,97429.0,97428.0,0.44572176]
[1733099111598,0.12710574,97429.0,97428.0,0.44272176]
[1733099111758,0.12710574,97429.0,97428.0,0.44472176]
[1733099112168,0.12710574,97429.0,97428.0,0.41468923]
[1733099112591,0.12710574,97429.0,97428.0,0.44871908]
[1733099113377,0.12710574,97429.0,97428.0,0.44871819]
[1733099114000,0.12710574,97429.0,97428.0,0.41668923]
[1733099114435,0.12710574,97429.0,97428.0,0.44871613]
[1733099114671,0.12710574,97429.0,97428.0,0.41668923]
[1733099114905,0.12710574,97429.0,97428.0,0.44871518]
[1733099116271,0.12710574,97429.0,97428.0,0.41668923]
[1733099116696,0.13402821,97429.0,97428.0,0.41668923]
[1733099116905,0.1317573,97429.0,97428.0,0.41668923]
[1733099117349,0.1317573,97429.0,97428.0,0.41268923]
[1733099117589,0.1317573,97429.0,97428.0,0.30792]
[1733099117816,0.1317573,97429.0,97428.0,0.31192]
[1733099118260,0.1317573,97429.0,97428.0,0.31392]
[1733099118510,0.1309573,97429.0,97428.0,0.30992]
[1733099118736,0.00100574,97429.0,97428.0,0.41276521]
[1733099119730,0.00100574,97429.0,97428.0,0.41272021]
[1733099119901,0.00100574,97429.0,97428.0,0.41072021]
[1733099120111,0.00100574,97429.0,97428.0,0.44373791]
[1733099120324,0.00100574,97429.0,97428.0,0.44573791]
[1733099120545,0.00100574,97429.0,97428.0,0.44568659]
[1733099120783,0.00100574,97429.0,97428.0,0.44468659]
[1733099121452,0.00100574,97429.0,97428.0,0.44868659]
[1733099121939,0.00100574,97429.0,97428.0,0.41666889]
[1733099123490,0.00100574,97429.0,97428.0,0.44868344]
[1733099125555,0.00792821,97429.0,97428.0,0.41666889]
[1733099125770,0.0056573,97429.0,97428.0,0.41666889]
[1733099126178,0.0056573,97429.0,97428.0,0.41066889]
[1733099126439,0.0056573,97429.0,97428.0,0.41166889]
[1733099126666,0.1270573,97429.0,97428.0,0.30882368]
[1733099126913,0.1270573,97429.0,97428.0,0.22571168]
[1733099126914,0.2770573,97429.0,97428.0,0.22571168]
[1733099127134,0.0761,97417.0,97410.0,0.07168295]
[1733099127412,0.250615,97411.0,97410.0,0.07168295]
[1733099127875,0.25526656,97411.0,97410.0,0.10284521]
[1733099128713,0.00465156,97405.0,97400.0,0.00178957]
[1733099128926,0.287536,97401.0,97400.0,0.00178957]
[1733099129817,0.287536,97401.0,97400.0,0.00978957]
[1733099130050,0.205336,97401.0,97400.0,0.00978957]
[1733099130271,0.205336,97401.0,97400.0,0.10463478]
[1733099130498,0.205336,97401.0,97400.0,0.11363478]
[1733099130719,0.205336,97401.0,97400.0,0.42164478]
[1733099131437,0.20533,97404.0,97400.0,0.42164478]
[1733099131624,0.20533,97404.0,97401.0,0.10284521]
[1733099132075,0.20533,97404.0,97402.0,0.308]
[1733099132297,0.205328,97405.0,97403.0,0.10284521]
[1733099132715,0.205328,97405.0,97404.0,0.308]
[1733099132928,0.205328,97405.0,97404.0,0.41084521]
[1733099133144,0.205326,97407.0,97404.0,0.41084521]
[1733099133361,0.205326,97407.0,97405.0,0.10284521]
[1733099133573,0.205318,97410.0,97405.0,0.10284521]
[1733099133820,0.205318,97410.0,97406.0,0.30799]
[1733099134045,0.205318,97410.0,97407.0,0.10284521]
[1733099134264,0.410636,97410.0,97407.0,0.10284521]
[1733099134501,0.205318,97410.0,97408.0,0.30798]
[1733099134708,0.205318,97410.0,97409.0,0.10284521]
[1733099135162,0.205318,97410.0,97409.0,0.41082521]
[1733099136246,0.205318,97410.0,97409.0,0.41882521]
[1733099136681,0.205318,97410.0,97409.0,0.42282521]
[1733099136914,0.205318,97410.0,97409.0,0.45480106]
[1733099139111,0.15,97410.0,97409.0,0.45480106]
[1733099140246,0.15,97412.0,97409.0,0.45480106]
[1733099140451,0.15,97412.0,97410.0,0.03197585]
[1733099140680,0.15,97412.0,97411.0,0.10284521]
[1733099140900,0.15,97412.0,97411.0,0.44279106]
[1733099142041,0.0017296,97417.0,97411.0,0.44279106]
[1733099142237,0.205305,97416.0,97412.0,0.03197585]
[1733099142448,0.205305,97416.0,97413.0,0.10284521]
[1733099142671,0.205305,97416.0,97414.0,0.03197585]
[1733099142890,0.205305,97416.0,97415.0,0.10284521]
[1733099143096,0.205305,97416.0,97415.0,0.44278106]
[1733099143601,0.2070326,97417.0,97415.0,0.44278106]
[1733099143805,0.0017296,97417.0,97416.0,0.03197585]
[1733099144015,0.0017296,97417.0,97416.0,0.13482106]
[1733099144224,0.0017296,97417.0,97416.0,0.44278106]
[1733099144455,0.0017296,97417.0,97416.0,0.44273002]
[1733099145609,0.0017296,97417.0,97416.0,0.44673002]
[1733099147065,0.0017296,97417.0,97416.0,0.44873002]
[1733099148364,0.0017296,97417.0,97416.0,0.41680521]
[1733099148577,0.0829296,97417.0,97416.0,0.41680521]
[1733099149248,0.08985237,97417.0,97416.0,0.41680521]
[1733099149692,0.08985237,97417.0,97416.0,0.41480521]
[1733099149909,0.08985237,97417.0,97416.0,0.41280521]
[1733099150406,0.08985237,97417.0,97416.0,0.41480521]
[1733099150620,0.08985237,97417.0,97416.0,0.41680521]
[1733099151287,0.08985237,97417.0,97416.0,0.41480521]
[1733099151740,0.08985237,97417.0,97416.0,0.41080521]
[1733099151968,0.08985237,97417.0,97416.0,0.41280521]
[1733099152229,0.08985237,97417.0,97416.0,0.41080521]
[1733099152677,0.08985237,97417.0,97416.0,0.41380521]
[1733099153139,0.08985237,97417.0,97416.0,0.41280521]
[1733099153380,0.08985237,97417.0,97416.0,0.31096]
[1733099153574,0.08985237,97417.0,97416.0,0.3118254]
[1733099157164,0.08985237,97417.0,97416.0,0.3108254]
[1733099157587,0.08758116,97417.0,97416.0,0.3118254]
[1733099158044,0.08758116,97417.0,97416.0,0.3098254]
[1733099158252,0.08758116,97417.0,97416.0,0.3108254]
[1733099158703,0.08758116,97417.0,97416.0,0.3098254]
[1733099159188,0.08758116,97417.0,97416.0,0.3108254]
[1733099162142,0.08985253,97417.0,97416.0,0.3108254]
[1733099162357,0.08985253,97417.0,97416.0,0.2902944]
[1733099163468,0.08985253,97417.0,97416.0,0.2892944]
[1733099163684,0.08985253,97417.0,97416.0,0.2482324]
[1733099163916,0.08985253,97417.0,97416.0,0.1866394]
[1733099164177,0.08985253,97417.0,97416.0,0.1455774]
[1733099164606,0.13645253,97417.0,97416.0,0.1455774]
[1733099164817,0.13645253,97417.0,97416.0,0.0429224]
[1733099165030,0.13645253,97417.0,97416.0,0.0439224]
[1733099165241,0.13645253,97417.0,97416.0,0.03937751]
[1733099165758,0.13645253,97417.0,97416.0,0.04037751]
[1733099166092,0.13645253,97417.0,97416.0,5.1e-07]
[1733099166848,0.21215718,97417.0,97416.0,5.1e-07]
[1733099167070,0.21215718,97417.0,97400.0,0.00178957]
[1733099167071,0.20998756,97401.0,97400.0,0.07352199]
[1733099167320,0.21225937,97401.0,97400.0,0.00178957]
[1733099169242,0.21225937,97401.0,97400.0,0.00478957]
[1733099169506,0.21225937,97401.0,97400.0,0.00278957]
[1733099169742,0.20998756,97401.0,97400.0,0.00378957]
[1733099169987,0.20998756,97401.0,97400.0,0.00478957]
[1733099170254,0.205336,97401.0,97400.0,0.10763478]
[1733099170486,0.205333,97403.0,97400.0,0.10763478]
[1733099170737,0.205333,97403.0,97401.0,0.18084521]
[1733099170738,0.410666,97403.0,97401.0,0.18084521]
[1733099171522,0.00465156,97402.0,97401.0,0.10284521]
[1733099171747,0.00692312,97402.0,97401.0,0.10284521]
[1733099172237,0.20998756,97401.0,97400.0,0.00178957]
[1733099172480,0.21225925,97401.0,97400.0,0.00178957]
[1733099173212,0.29295925,97401.0,97400.0,0.00178957]
[1733099173440,0.29068756,97401.0,97400.0,0.00178957]
[1733099174415,0.33688756,97401.0,97400.0,0.00178957]
[1733099175423,0.33788756,97401.0,97400.0,0.00178957]
[1733099176763,0.21098756,97401.0,97400.0,0.00178957]
[1733099176976,0.20860785,97401.0,97400.0,0.00178957]
[1733099177258,0.21098756,97401.0,97400.0,0.00178957]
[1733099177497,0.21325938,97401.0,97400.0,0.00178957]
[1733099177744,0.21225938,97401.0,97400.0,0.00178957]
[1733099177984,0.205336,97401.0,97400.0,0.00178957]
[1733099178194,0.206336,97401.0,97400.0,0.10463478]
[1733099178664,0.205336,97401.0,97400.0,0.10463478]
[1733099178899,0.206336,97401.0,97400.0,0.10463478]
[1733099179622,0.206336,97401.0,97400.0,0.10737514]
[1733099180574,0.205336,97401.0,97400.0,0.10737514]
[1733099180797,0.205336,97401.0,97400.0,0.11037514]
[1733099181293,0.205336,97401.0,97400.0,0.11237514]
[1733099181544,0.205336,97401.0,97400.0,0.11337514]
[1733099181789,0.205336,97401.0,97400.0,0.10837514]
[1733099182038,0.205336,97401.0,97400.0,0.01152993]
[1733099182039,0.21225921,97401.0,97400.0,0.01152993]
[1733099182735,0.21225921,97401.0,97400.0,0.00552993]
[1733099183725,0.21225921,97401.0,97400.0,0.00152993]
[1733099183955,0.21225921,97401.0,97400.0,0.00352993]
[1733099184413,0.21225921,97401.0,97400.0,0.00152993]
[1733099185715,0.21325921,97401.0,97400.0,0.00152993]
[1733099186179,0.21325921,97401.0,97400.0,0.00252993]
[1733099186898,0.21225921,97401.0,97400.0,0.00252993]
[1733099187143,0.21225921,97401.0,97400.0,0.00352993]
[1733099187629,0.21225921,97401.0,97400.0,0.00152993]
[1733099187870,0.21225921,97401.0,97400.0,0.00252993]
[1733099188333,0.21225921,97401.0,97400.0,0.00352993]
[1733099188566,0.21225921,97401.0,97400.0,0.00252993]
[1733099188849,0.21225921,97401.0,97400.0,0.00152993]
[1733099189090,0.21225921,97401.0,97400.0,0.00252993]
[1733099189790,0.21225921,97401.0,97400.0,0.00352993]
[1733099190723,0.21225921,97401.0,97400.0,0.00252993]
[1733099190962,0.21225921,97401.0,97400.0,0.00152993]
[1733099191194,0.21225921,97401.0,97400.0,0.00452993]
[1733099192384,0.20998756,97401.0,97400.0,0.00452993]
[1733099193827,0.21225924,97401.0,97400.0,0.00452993]
[1733099195424,0.21225924,97401.0,97400.0,0.00252993]
[1733099195856,0.21225924,97401.0,97400.0,0.00152993]
[1733099197195,0.21225924,97401.0,97400.0,0.00352993]
[1733099197412,0.21225924,97401.0,97400.0,0.00252993]
[1733099197646,0.21225924,97401.0,97400.0,0.00152993]
[1733099197913,0.21225924,97401.0,97400.0,0.00452993]
[1733099198127,0.20998756,97401.0,97400.0,0.00452993]
[1733099199272,0.20998756,97401.0,97400.0,0.18947514]
[1733099199273,0.207067,97401.0,97400.0,0.18947514]
[1733099199488,0.207067,97401.0,97400.0,0.22152742]
[1733099202816,0.207067,97401.0,97400.0,0.22052742]
[1733099203277,0.207067,97401.0,97400.0,0.21952742]
[1733099203730,0.207067,97401.0,97400.0,0.22152742]
[1733099204705,0.1688587,97401.0,97400.0,0.22152742]
[1733099209463,0.18991179,97401.0,97400.0,0.22152742]
[1733099213805,0.1688587,97401.0,97400.0,0.22152742]
[1733099217337,0.001731,97401.0,97400.0,0.22152742]
[1733099219511,0.02196118,97401.0,97400.0,0.22152742]
[1733099220228,0.01696118,97401.0,97400.0,0.22152742]
[1733099220947,0.205319,97409.0,97400.0,0.22152742]
[1733099221153,0.205307,97415.0,97402.0,0.10284521]
[1733099221368,0.205318,97410.0,97403.0,0.03205228]
[1733099221578,0.205318,97410.0,97404.0,0.10284521]
[1733099221849,0.205318,97410.0,97405.0,0.03205228]
[1733099222060,0.205318,97410.0,97406.0,0.10284521]
[1733099222272,0.001,97409.0,97407.0,0.03205228]
[1733099222490,0.00018163,97409.0,97408.0,0.10284521]
[1733099222734,0.00018163,97409.0,97408.0,0.13489749]
[1733099222945,0.00018163,97409.0,97408.0,0.44287749]
[1733099222946,0.00710455,97409.0,97408.0,0.44287749]
[1733099223154,0.00710455,97409.0,97408.0,0.30798]
[1733099223422,0.00483319,97409.0,97408.0,0.30798]
[1733099223649,0.00465156,97409.0,97408.0,0.30798]
[1733099223877,0.02546726,97409.0,97408.0,0.30798]
[1733099224127,0.02546726,97409.0,97408.0,0.30898]
[1733099224367,0.02546726,97409.0,97408.0,0.30798]
[1733099224613,0.15026726,97409.0,97408.0,0.30798]
[1733099224815,0.15126726,97409.0,97408.0,0.30798]
[1733099225448,0.15026726,97409.0,97408.0,0.30798]
[1733099225691,0.1525388,97409.0,97408.0,0.30798]
[1733099227033,0.1535388,97409.0,97408.0,0.30798]
[1733099227887,0.1525388,97409.0,97408.0,0.30798]
[1733099228105,0.13172319,97409.0,97408.0,0.30798]
[1733099228292,0.13272319,97409.0,97408.0,0.30798]
[1733099228747,0.13172319,97409.0,97408.0,0.30798]
[1733099230553,0.13472319,97409.0,97408.0,0.30798]
[1733099231005,0.1314468,97409.0,97408.0,0.30798]
[1733099231218,0.1324468,97409.0,97408.0,0.30798]
[1733099231900,0.1324468,97409.0,97408.0,0.225852]
[1733099232113,0.33030327,97409.0,97408.0,0.0746232]
[1733099232326,0.31851117,97401.0,97400.0,0.00152993]
[1733099232532,0.42135638,97401.0,97400.0,0.00152993]
[1733099232747,0.42135638,97401.0,97392.0,8.8e-07]
[1733099232748,0.30852817,97393.0,97392.0,8.8e-07]
[1733099232970,0.42137338,97393.0,97392.0,8.8e-07]
[1733099233186,0.20979617,97361.0,97360.0,0.07172952]
[1733099233459,0.00437517,97361.0,97356.0,0.0758]
[1733099233708,0.00437517,97361.0,97357.0,0.10284521]
[1733099233709,0.20769762,97360.0,97357.0,0.10284521]
[1733099234659,0.00437517,97352.0,97351.0,0.0017308]
[1733099235050,0.0066481,97352.0,97351.0,0.0017308]
[1733099235819,0.02690685,97352.0,97351.0,0.0017308]
[1733099236054,0.02253168,97352.0,97351.0,0.0017308]
[1733099236328,0.02025875,97352.0,97351.0,0.18107601]
[1733099236787,9.771e-05,97360.0,97352.0,0.0765]
[1733099236993,9.771e-05,97360.0,97356.0,0.0765]
[1733099237249,9.771e-05,97360.0,97357.0,0.10284521]
[1733099238101,0.00409771,97360.0,97357.0,0.10284521]
[1733099238615,9.771e-05,97360.0,97357.0,0.10284521]
[1733099238820,0.00409771,97360.0,97358.0,0.205427]
[1733099239036,0.00409771,97360.0,97359.0,0.10284521]
[1733099239517,0.01109771,97360.0,97359.0,0.10284521]
[1733099239729,0.00409771,97360.0,97359.0,0.10284521]
[1733099240214,0.00709771,97360.0,97359.0,0.18044521]
[1733099240417,9.771e-05,97360.0,97359.0,0.18044521]
[1733099240671,0.00409771,97360.0,97359.0,0.18044521]
[1733099241184,0.00109771,97360.0,97359.0,0.18944521]
[1733099241637,0.00109771,97360.0,97359.0,0.19644521]
[1733099243177,0.00109771,97360.0,97359.0,0.22836345]
[1733099243851,0.20536,97390.0,97359.0,0.22836345]
[1733099243852,0.00437517,97395.0,97376.0,0.0779]
[1733099244122,0.205355,97392.0,97385.0,0.10946539]
[1733099244358,0.205355,97392.0,97386.0,0.10284521]
[1733099245053,0.2070862,97392.0,97386.0,0.10284521]
[1733099245496,0.4124432,97392.0,97386.0,0.10284521]
[1733099246824,0.4124432,97392.0,97386.0,0.10584521]
[1733099247932,0.20973717,97389.0,97386.0,0.10584521]
[1733099248172,0.00437517,97387.0,97386.0,0.003]
[1733099248383,0.00664728,97387.0,97386.0,0.003]
[1733099248602,0.06909253,97387.0,97386.0,0.003]
[1733099249031,0.00664728,97387.0,97386.0,0.003]
[1733099249034,0.00664728,97387.0,97386.0,0.001]
[1733099249282,0.00664728,97387.0,97386.0,0.002]
[1733099249497,0.00664728,97387.0,97386.0,0.001]
[1733099249725,0.205368,97386.0,97370.0,0.10946539]
[1733099249967,0.205399,97371.0,97370.0,0.10946539]
[1733099250214,0.205399,97371.0,97361.0,0.10946539]
[1733099250454,0.20542,97362.0,97361.0,0.10946539]
[1733099250890,0.20542,97362.0,97361.0,0.2123106]
[1733099252035,0.20542,97362.0,97361.0,0.10284521]
[1733099252734,0.205414,97365.0,97361.0,0.11184521]
[1733099252980,0.205391,97375.0,97362.0,0.10284521]
[1733099253222,0.205378,97381.0,97365.0,0.10946539]
[1733099253460,0.205378,97381.0,97366.0,0.10284521]
[1733099253674,0.205372,97384.0,97371.0,0.10946539]
[1733099253917,0.205368,97386.0,97374.0,0.10946539]
[1733099254154,0.20538,97381.0,97375.0,0.10284521]
[1733099254830,0.205368,97386.0,97375.0,0.10284521]
[1733099255069,0.20538,97381.0,97375.0,0.10284521]
[1733099256284,0.20538,97381.0,97375.0,0.10684521]
[1733099256754,0.20538,97381.0,97375.0,0.11384521]
[1733099257663,0.20538,97381.0,97376.0,0.03196526]
[1733099257920,0.20538,97381.0,97377.0,0.10284521]
[1733099259486,0.20538,97381.0,97377.0,0.10984521]
[1733099260355,0.205374,97383.0,97377.0,0.11384521]
[1733099261240,0.20537,97385.0,97377.0,0.11384521]
[1733099261683,0.02065044,97388.0,97377.0,0.10984521]
[1733099261938,0.02065044,97388.0,97378.0,0.0774]
[1733099262160,0.205368,97386.0,97379.0,0.10284521]
[1733099262386,0.2070882,97392.0,97382.0,0.10284521]
[1733099262597,0.205366,97387.0,97382.0,0.10284521]
[1733099263706,0.410732,97387.0,97382.0,0.10284521]
[1733099264139,0.205372,97384.0,97382.0,0.10684521]
[1733099264374,0.205372,97384.0,97382.0,0.10884521]
[1733099265288,0.205372,97384.0,97382.0,0.10484521]
[1733099265731,0.06892224,97383.0,97382.0,0.005]
[1733099265951,0.00664713,97383.0,97360.0,0.18896539]
[1733099266165,0.205421,97361.0,97360.0,0.0795]
[1733099267996,0.205421,97361.0,97360.0,0.0845]
[1733099268458,0.205421,97361.0,97360.0,0.19721111]
[1733099268896,0.205421,97361.0,97360.0,0.19705483]
[1733099269343,0.205421,97361.0,97360.0,0.11771111]
[1733099272483,0.2076935,97361.0,97360.0,0.11771111]
[1733099273362,0.2076935,97361.0,97360.0,0.10371111]
[1733099273577,0.2076935,97361.0,97360.0,0.11271111]
[1733099273789,0.2076935,97361.0,97360.0,0.11771111]
[1733099274899,0.2076935,97361.0,97360.0,0.10871111]
[1733099275135,0.2076935,97361.0,97360.0,0.11271111]
[1733099275364,0.2076935,97361.0,97360.0,0.10371111]
[1733099275849,0.21206867,97361.0,97360.0,0.0068659]
[1733099276089,0.21206867,97361.0,97360.0,0.0118659]
[1733099276342,0.21206867,97361.0,97360.0,0.0105659]
[1733099276576,0.21206867,97361.0,97360.0,0.0055659]
[1733099276818,0.21206867,97361.0,97360.0,0.0085659]
[1733099277747,0.21206867,97361.0,97360.0,0.003]
[1733099278442,0.21206867,97361.0,97358.0,9.771e-05]
[1733099278694,0.205425,97359.0,97358.0,9.771e-05]
[1733099278932,0.21207319,97359.0,97358.0,9.771e-05]
[1733099280514,0.205425,97359.0,97358.0,9.771e-05]
[1733099280735,0.0209331,97361.0,97358.0,0.10294292]
[1733099280959,0.205423,97360.0,97359.0,0.10284521]
[1733099282564,0.205423,97360.0,97359.0,0.10784521]
[1733099282803,0.205413,97365.0,97359.0,0.11084521]
[1733099283018,0.205406,97368.0,97359.0,0.10584521]
[1733099283237,0.205406,97368.0,97359.0,0.10284521]
[1733099283467,0.205406,97368.0,97360.0,0.03196617]
[1733099283697,0.205396,97373.0,97361.0,0.10284521]
[1733099283924,0.205416,97364.0,97361.0,0.10284521]
[1733099284375,0.20541,97366.0,97361.0,0.10284521]
[1733099285057,0.20541,97366.0,97361.0,0.10384521]
[1733099285278,0.20541,97366.0,97361.0,0.10284521]
[1733099285495,0.00437517,97372.0,97362.0,0.0753]
[1733099285736,0.00437517,97372.0,97363.0,0.10284521]
[1733099285737,0.205413,97365.0,97363.0,0.10284521]
[1733099286854,0.20979117,97363.0,97362.0,0.001]
[1733099287080,0.21206402,97363.0,97362.0,0.001]
[1733099287727,0.21206402,97363.0,97362.0,0.006]
[1733099287954,0.21206402,97363.0,97362.0,0.005]
[1733099288180,0.00437517,97359.0,97358.0,9.771e-05]
[1733099288393,0.00664815,97359.0,97358.0,9.771e-05]
[1733099290594,0.20981517,97352.0,97335.0,0.0758]
[1733099290827,0.00437517,97338.0,97335.0,0.0758]
[1733099291072,0.20984817,97336.0,97335.0,0.07639562]
[1733099291290,0.21212133,97336.0,97335.0,0.00059562]
[1733099291964,0.00227316,97336.0,97335.0,0.10344083]
[1733099292190,0.20983717,97342.0,97335.0,0.17864083]
[1733099292407,0.20983717,97342.0,97336.0,0.10284521]
[1733099292617,0.205471,97337.0,97336.0,0.10284521]
[1733099293097,0.205458,97344.0,97336.0,0.10284521]
[1733099293343,0.205435,97355.0,97336.0,0.10284521]
[1733099293344,0.205454,97346.0,97337.0,0.04661903]
[1733099293575,0.20545,97348.0,97338.0,0.10284521]
[1733099293812,0.20545,97348.0,97339.0,0.0321746]
[1733099294021,0.20545,97348.0,97340.0,0.10284521]
[1733099294227,0.4109,97348.0,97341.0,0.00021903]
[1733099294452,0.205454,97345.0,97342.0,0.10284521]
[1733099294678,0.205454,97345.0,97343.0,0.00021902]
[1733099294897,0.205454,97345.0,97344.0,0.10284521]
[1733099295329,0.02038255,97346.0,97344.0,0.10284521]
[1733099295539,0.02038255,97346.0,97345.0,0.00021902]
[1733099295759,0.02038255,97346.0,97345.0,0.10306423]
[1733099296420,0.205436,97354.0,97345.0,0.18196423]
[1733099296647,0.205436,97354.0,97346.0,0.10306422]
[1733099298239,0.205436,97354.0,97346.0,0.10906422]
[1733099298458,0.205427,97359.0,97346.0,0.31751422]
[1733099298705,0.205427,97359.0,97347.0,0.03198405]
[1733099298938,0.205427,97359.0,97348.0,0.18374521]
[1733099299156,0.0017318,97360.0,97350.0,0.046]
[1733099299370,0.0017318,97360.0,97351.0,0.13482926]
[1733099299612,0.0017318,97360.0,97352.0,0.03198405]
[1733099299850,0.0017318,97360.0,97354.0,0.205435]
[1733099300078,0.0017318,97360.0,97355.0,0.13482926]
[1733099300373,0.0017318,97360.0,97356.0,0.03198405]
[1733099300592,0.0017318,97360.0,97357.0,0.10284521]
[1733099300831,0.0017318,97360.0,97358.0,0.03198405]
[1733099301082,0.0017318,97360.0,97359.0,0.10284521]
[1733099301523,0.2071548,97360.0,97359.0,0.10284521]
[1733099301744,0.0017318,97360.0,97359.0,0.10284521]
[1733099302190,0.0017318,97360.0,97359.0,0.11184521]
[1733099302648,0.0017318,97360.0,97359.0,0.14885829]
[1733099304281,0.0017318,97360.0,97359.0,0.22655829]
[1733099305169,0.0017318,97360.0,97359.0,0.22155829]
[1733099305623,0.0017318,97360.0,97359.0,0.21855829]
[1733099305844,0.0017318,97360.0,97359.0,0.22755829]
[1733099306545,0.0017318,97360.0,97359.0,0.14985829]
[1733099306758,0.0017318,97360.0,97359.0,0.11784521]
[1733099307044,0.0017318,97360.0,97359.0,0.10284521]
[1733099307513,0.0017318,97360.0,97359.0,0.10484521]
[1733099307735,0.0017318,97360.0,97359.0,0.10384521]
[1733099307958,0.0017318,97360.0,97359.0,0.10584521]
[1733099308204,0.0017318,97360.0,97359.0,0.10484521]